bitfinex-derivatives/quotes_BTCF0:USTF0_20250609
["timestamp","ask_amount","ask_price","bid_price","bid_amount"]
[1749466071706,0.97683244,107200.0,107190.0,1.65620314]
[1749466071911,0.97683244,107200.0,107190.0,1.76482641]
[1749466072109,0.97683244,107200.0,107190.0,1.76382641]
[1749466072300,0.97683244,107200.0,107190.0,1.76582641]
[1749466072608,0.97683244,107200.0,107190.0,1.76682641]
[1749466073201,1.16329654,107200.0,107190.0,1.76682641]
[1749466073511,0.97683244,107200.0,107190.0,1.76682641]
[1749466073711,0.96169174,107200.0,107190.0,1.76682641]
[1749466074196,1.14815574,107200.0,107190.0,1.76682641]
[1749466074709,1.14815574,107200.0,107190.0,1.18989029]
[1749466075014,1.14815574,107200.0,107190.0,1.65831356]
[1749466075410,0.96169174,107200.0,107190.0,1.65531356]
[1749466075598,1.14815564,107200.0,107190.0,1.65631356]
[1749466076305,1.14815564,107200.0,107190.0,1.54769029]
[1749466076512,0.96169174,107200.0,107190.0,1.65631356]
[1749466079803,0.96169174,107200.0,107190.0,1.85669614]
[1749466080108,0.96169174,107200.0,107190.0,1.49589614]
[1749466080318,0.96169174,107200.0,107190.0,1.85669614]
[1749466080602,0.96169174,107200.0,107190.0,1.65631356]
[1749466081008,1.14815564,107200.0,107190.0,1.29551356]
[1749466081401,0.96169174,107200.0,107190.0,1.29551356]
[1749466081713,0.96169174,107200.0,107190.0,1.65631356]
[1749466082309,1.14815574,107200.0,107190.0,1.65631356]
[1749466082504,0.96169174,107200.0,107190.0,1.65631356]
[1749466082704,1.14815574,107200.0,107190.0,1.65631356]
[1749466083104,0.59455574,107200.0,107190.0,1.46983246]
[1749466083305,1.61737901,107200.0,107190.0,0.71610919]
[1749466083511,1.61737901,107200.0,107190.0,0.33450919]
[1749466083812,2.00187901,107200.0,107190.0,0.53489177]
[1749466084014,1.89325574,107200.0,107190.0,0.53489177]
[1749466084214,1.89731234,107200.0,107190.0,0.72999177]
[1749466084516,1.89731234,107200.0,107190.0,0.92479177]
[1749466084700,1.15201234,107200.0,107190.0,1.03241504]
[1749466085107,1.15201234,107200.0,107190.0,0.72340919]
[1749466085613,1.15201234,107200.0,107190.0,0.72240919]
[1749466085816,1.15201234,107200.0,107190.0,0.90889059]
[1749466086116,1.15201234,107200.0,107190.0,0.72240919]
[1749466086316,1.15201234,107200.0,107190.0,0.72440919]
[1749466088113,1.34811234,107200.0,107190.0,0.72440919]
[1749466088309,1.34811234,107200.0,107190.0,0.82440919]
[1749466089418,1.89681234,107200.0,107190.0,0.82440919]
[1749466090019,1.53601234,107200.0,107190.0,0.82440919]
[1749466090318,1.53601234,107200.0,107190.0,1.01089059]
[1749466090319,1.89681234,107200.0,107190.0,1.01089059]
[1749466091516,1.89681234,107200.0,107190.0,1.02479177]
[1749466091819,1.89681234,107200.0,107190.0,1.21127317]
[1749466092022,1.53601234,107200.0,107190.0,1.21127317]
[1749466092209,1.89681234,107200.0,107190.0,1.02479177]
[1749466092518,1.52086965,107200.0,107190.0,1.01089049]
[1749466092914,1.88166965,107200.0,107190.0,1.01089049]
[1749466093113,1.52086965,107200.0,107190.0,1.01089049]
[1749466093621,1.14646565,107200.0,107190.0,1.01089049]
[1749466093913,1.33292965,107200.0,107190.0,1.01089049]
[1749466094119,0.39700565,107200.0,107190.0,1.40706022]
[1749466094310,0.95036565,107200.0,107190.0,1.40706022]
[1749466094510,1.13642965,107200.0,107190.0,1.40706022]
[1749466094712,1.13682965,107200.0,107190.0,1.40706022]
[1749466094912,1.13642965,107200.0,107190.0,1.11951376]
[1749466095328,1.13682965,107200.0,107190.0,1.11951376]
[1749466095622,1.13682965,107200.0,107190.0,1.01089049]
[1749466096016,1.32802965,107200.0,107190.0,1.01089049]
[1749466096525,1.32802965,107200.0,107190.0,1.38533329]
[1749466097023,1.30683031,107200.0,107190.0,1.38533329]
[1749466097523,1.11563031,107200.0,107190.0,1.38533329]
[1749466099025,1.11563031,107200.0,107190.0,1.44122329]
[1749466099235,1.11563031,107200.0,107190.0,1.72814635]
[1749466099419,1.22425358,107200.0,107190.0,1.72814645]
[1749466099729,1.78105358,107200.0,107190.0,1.16722225]
[1749466099927,0.37580631,107200.0,107190.0,1.46232692]
[1749466100228,1.11543031,107200.0,107190.0,1.65922692]
[1749466100426,1.11503031,107200.0,107190.0,1.65922692]
[1749466100727,1.11543031,107200.0,107190.0,1.65922692]
[1749466102026,0.92896631,107200.0,107190.0,1.65922692]
[1749466102232,1.11543031,107200.0,107190.0,1.65922692]
[1749466102529,1.1002879,107200.0,107190.0,1.65922692]
[1749466102723,1.1002879,107200.0,107190.0,1.37230386]
[1749466103725,0.9137839,107200.0,107190.0,1.83266132]
[1749466104029,0.9133839,107200.0,107190.0,2.11958438]
[1749466104230,0.9137839,107200.0,107190.0,2.11958438]
[1749466105526,0.9137839,107200.0,107190.0,2.01096111]
[1749466106031,0.9137839,107200.0,107190.0,2.11958438]
[1749466106229,0.9137839,107200.0,107190.0,1.83266132]
[1749466107324,0.4693039,107200.0,107190.0,2.11967446]
[1749466107629,0.9137839,107200.0,107190.0,2.11967446]
[1749466107933,0.9133839,107200.0,107190.0,1.83266132]
[1749466108129,0.9137839,107200.0,107190.0,1.83266132]
[1749466108530,0.9137439,107200.0,107190.0,1.83266132]
[1749466109229,0.9137439,107200.0,107190.0,2.11967446]
[1749466109432,0.89254677,107200.0,107190.0,2.11967446]
[1749466109626,0.88849017,107200.0,107190.0,2.11967446]
[1749466110028,0.88849017,107200.0,107190.0,1.83266132]
[1749466110222,0.88849017,107200.0,107190.0,2.20710412]
[1749466110933,0.55348,107200.0,107190.0,2.20710412]
[1749466111232,0.55348,107200.0,107190.0,2.09848085]
[1749466111432,0.55348,107200.0,107190.0,2.20710412]
[1749466112231,0.55348,107200.0,107190.0,2.09848085]
[1749466112432,0.53833919,107200.0,107190.0,2.20710412]
[1749466113027,0.53833919,107200.0,107190.0,2.49405046]
[1749466113337,0.53833919,107200.0,107190.0,2.11960766]
[1749466113729,0.53833919,107200.0,107190.0,2.01098439]
[1749466113927,0.53833919,107200.0,107190.0,2.11960766]
[1749466115135,0.53833919,107200.0,107190.0,2.01960766]
[1749466117844,0.55344,107200.0,107190.0,2.01960766]
[1749466118033,0.55304,107200.0,107190.0,2.01960766]
[1749466118235,0.55304,107200.0,107190.0,2.11283116]
[1749466118433,0.55304,107200.0,107190.0,2.06621376]
[1749466118636,0.55304,107200.0,107190.0,1.77926742]
[1749466119938,0.55304,107200.0,107190.0,2.06621376]
[1749466120240,0.55304,107200.0,107190.0,2.21283296]
[1749466120638,0.55304,107200.0,107190.0,1.92588662]
[1749466122440,0.53789901,107200.0,107190.0,1.81726335]
[1749466122735,0.53789901,107200.0,107190.0,2.30032942]
[1749466123348,0.53789901,107200.0,107190.0,1.90157035]
[1749466123349,0.72436301,107200.0,107190.0,1.90157035]
[1749466123533,0.53789901,107200.0,107190.0,1.90157035]
[1749466123841,0.53789901,107200.0,107190.0,1.52712755]
[1749466124035,0.53789901,107200.0,107190.0,1.81407084]
[1749466124236,0.53789901,107200.0,107190.0,1.45327084]
[1749466124540,0.72436301,107200.0,107190.0,1.26679994]
[1749466124841,1.38528628,107200.0,107190.0,0.97823152]
[1749466125033,1.75518628,107200.0,107190.0,0.77734248]
[1749466125440,3.25518628,107200.0,107190.0,0.77734248]
[1749466126142,3.25518628,107200.0,107190.0,0.77634248]
[1749466126341,3.25518628,107200.0,107190.0,0.77534248]
[1749466128336,3.25518628,107200.0,107190.0,0.53612992]
[1749466128938,3.22818628,107200.0,107190.0,0.24918663]
[1749466129539,3.22818628,107200.0,107190.0,0.53612992]
[1749466129938,3.22818628,107200.0,107190.0,0.43612992]
[1749466130231,3.22818628,107200.0,107190.0,0.53612992]
[1749466130435,1.72818628,107200.0,107190.0,0.53612992]
[1749466131745,1.72818628,107200.0,107190.0,0.72261122]
[1749466132344,1.72818628,107200.0,107190.0,0.53612992]
[1749466132645,1.71404269,107200.0,107190.0,0.53612992]
[1749466132837,1.71404269,107200.0,107190.0,0.72261132]
[1749466133039,1.71404269,107200.0,107190.0,0.53612992]
[1749466133343,1.71404269,107200.0,107190.0,0.43612992]
[1749466134850,1.71404269,107200.0,107190.0,0.53612992]
[1749466135351,1.77120727,107200.0,107190.0,0.53612992]
[1749466136150,1.662984,107200.0,107190.0,0.53612992]
[1749466136351,1.77160727,107200.0,107190.0,0.53612992]
[1749466136545,1.77060727,107200.0,107190.0,0.53612992]
[1749466137147,1.77060727,107200.0,107190.0,0.43612992]
[1749466137450,1.77060727,107200.0,107190.0,0.53612992]
[1749466137951,1.77060727,107200.0,107190.0,0.56413992]
[1749466139146,1.77060727,107200.0,107190.0,0.76492418]
[1749466139654,1.77060727,107200.0,107190.0,0.47798089]
[1749466140658,2.19336727,107200.0,107190.0,0.47798089]
[1749466141055,1.531824,107200.0,107190.0,0.66446229]
[1749466141354,2.084704,107200.0,107190.0,1.00196471]
[1749466141557,2.084704,107200.0,107190.0,0.81548331]
[1749466141855,2.084704,107200.0,107190.0,0.91548331]
[1749466142853,2.084704,107200.0,107190.0,1.10196471]
[1749466142854,2.06956078,107200.0,107190.0,1.10196471]
[1749466143056,1.88376078,107200.0,107190.0,0.90118045]
[1749466143452,1.69966078,107200.0,107190.0,1.09258045]
[1749466143942,1.69966078,107200.0,107190.0,0.90609905]
[1749466144456,1.80828405,107200.0,107190.0,0.90609905]
[1749466145046,1.80828405,107200.0,107190.0,0.51729905]
[1749466145357,2.18488405,107200.0,107190.0,0.51815132]
[1749466145559,2.18488405,107200.0,107190.0,0.3780489]
[1749466146545,2.18588405,107200.0,107190.0,0.3780489]
[1749466148161,2.42848405,107200.0,107190.0,0.3780489]
[1749466150452,2.31986078,107200.0,107190.0,0.3780489]
[1749466150657,2.42848405,107200.0,107190.0,0.3780489]
[1749466151761,2.63039533,107200.0,107190.0,0.3780489]
[1749466152147,2.18607533,107200.0,107190.0,0.17719663]
[1749466152352,2.63039533,107200.0,107190.0,0.17719663]
[1749466152759,2.07745206,107200.0,107190.0,0.17719663]
[1749466153058,2.52177206,107200.0,107190.0,0.17719663]
[1749466156056,2.52177206,107200.0,107190.0,0.16969882]
[1749466157766,2.42848405,107200.0,107190.0,0.16969882]
[1749466157965,2.42848405,107200.0,107190.0,0.17310276]
[1749466158967,2.53710732,107200.0,107190.0,0.17310276]
[1749466159566,2.31986078,107200.0,107190.0,0.17310276]
[1749466159769,2.53710732,107200.0,107190.0,0.17310276]
[1749466160567,1.98422732,107200.0,107190.0,0.17310276]
[1749466160766,2.31982078,107200.0,107190.0,0.17310276]
[1749466160962,2.42844405,107200.0,107190.0,0.56855503]
[1749466161162,2.41329913,107200.0,107190.0,0.56855503]
[1749466161570,2.5219224,107200.0,107190.0,0.31362463]
[1749466161767,0.0466319,107170.0,107150.0,0.55422597]
[1749466162076,0.3730464,107170.0,107160.0,0.62099505]
[1749466162266,1.2866864,107170.0,107160.0,0.80752855]
[1749466162466,1.4668864,107170.0,107160.0,0.66684026]
[1749466162660,1.4668864,107170.0,107160.0,0.6204127]
[1749466162960,1.4668864,107170.0,107160.0,0.57371597]
[1749466163162,1.4668864,107170.0,107160.0,0.76024947]
[1749466163163,1.57550967,107170.0,107160.0,0.76024947]
[1749466163362,1.57550967,107170.0,107160.0,0.57371597]
[1749466163767,1.57550967,107170.0,107160.0,0.66024947]
[1749466163956,1.57550967,107170.0,107160.0,0.47371597]
[1749466164160,1.57550967,107170.0,107160.0,0.47671597]
[1749466164864,1.57550967,107170.0,107160.0,0.47871597]
[1749466165064,1.57550967,107170.0,107160.0,0.57871597]
[1749466165268,1.57550967,107170.0,107160.0,0.47871597]
[1749466165861,1.62190201,107170.0,107160.0,0.57871597]
[1749466166067,1.62190201,107170.0,107160.0,0.47871597]
[1749466166265,1.43538591,107170.0,107150.0,0.07597841]
[1749466166566,0.1865507,107150.0,107140.0,0.1958]
[1749466166770,0.3265285,107130.0,107120.0,0.1887]
[1749466167064,1.34883177,107130.0,107120.0,0.5778184]
[1749466167465,1.34492036,107130.0,107120.0,0.57792559]
[1749466167770,1.33992036,107130.0,107120.0,0.57792559]
[1749466167965,1.33992036,107130.0,107120.0,0.77572559]
[1749466168369,1.33992036,107130.0,107120.0,0.77672559]
[1749466168777,1.33992036,107130.0,107120.0,0.85132329]
[1749466170070,1.34192036,107130.0,107120.0,0.85132329]
[1749466170963,1.91881046,107130.0,107120.0,0.19442559]
[1749466171173,0.88206719,107130.0,107120.0,0.19442559]
[1749466171368,0.59376699,107130.0,107120.0,0.38102799]
[1749466171569,0.57861309,107130.0,107120.0,0.96592799]
[1749466171968,1.13193309,107130.0,107120.0,1.20684547]
[1749466172169,2.63193309,107130.0,107120.0,1.20684547]
[1749466172374,2.63153309,107130.0,107120.0,1.28073457]
[1749466172575,2.60279419,107130.0,107120.0,1.28073457]
[1749466172773,2.24199419,107130.0,107120.0,1.64153457]
[1749466172969,2.71141746,107130.0,107120.0,1.09413217]
[1749466173677,2.71141746,107130.0,107120.0,0.99413217]
[1749466174466,2.60279419,107130.0,107120.0,0.99413217]
[1749466175674,1.21141746,107130.0,107120.0,0.19442559]
[1749466175877,1.78491746,107130.0,107120.0,0.19442559]
[1749466176577,1.87826946,107130.0,107120.0,0.19442559]
[1749466177368,1.87826946,107130.0,107120.0,0.09442559]
[1749466178183,1.83826946,107130.0,107120.0,0.09442559]
[1749466179068,1.72964619,107130.0,107120.0,0.09442559]
[1749466179480,1.83826946,107130.0,107120.0,0.09442559]
[1749466180969,1.72964619,107130.0,107120.0,0.09442559]
[1749466181173,1.83826946,107130.0,107120.0,0.09442559]
[1749466184378,1.74467746,107130.0,107120.0,0.19442559]
[1749466184584,1.74467746,107130.0,107120.0,0.47852559]
[1749466184880,1.74507746,107130.0,107120.0,0.48258219]
[1749466185077,1.70467746,107130.0,107120.0,0.43594219]
[1749466185282,1.70507746,107130.0,107120.0,0.43594219]
[1749466185884,1.70507746,107130.0,107120.0,0.05184219]
[1749466186079,1.81908189,107130.0,107100.0,0.1937]
[1749466186285,1.01683937,107110.0,107100.0,0.3788]
[1749466186476,1.56995937,107110.0,107100.0,0.3788]
[1749466186678,1.93905937,107110.0,107100.0,0.47214889]
[1749466186982,1.93905937,107110.0,107100.0,0.57214889]
[1749466187185,1.93905937,107110.0,107100.0,0.57425889]
[1749466187384,1.8304361,107110.0,107100.0,0.57625889]
[1749466187583,1.93905937,107110.0,107100.0,0.57625889]
[1749466187783,1.74050216,107110.0,107100.0,0.57625889]
[1749466188686,1.74050216,107110.0,107100.0,0.57425889]
[1749466188987,1.74050216,107110.0,107100.0,0.57625889]
[1749466189982,1.74250216,107110.0,107100.0,0.57225889]
[1749466190287,1.98510216,107110.0,107100.0,0.57225889]
[1749466192283,1.40298216,107110.0,107100.0,0.57225889]
[1749466192489,1.95610216,107110.0,107100.0,0.57225889]
[1749466194186,1.10865889,107110.0,107100.0,0.57225889]
[1749466194400,1.66177889,107110.0,107100.0,0.71187496]
[1749466194780,1.66217889,107110.0,107100.0,0.71187496]
[1749466194985,1.10905889,107110.0,107100.0,0.71187496]
[1749466195286,0.79812,107110.0,107100.0,0.82049823]
[1749466195486,0.79812,107110.0,107100.0,0.92049823]
[1749466195487,0.7417504,107110.0,107100.0,0.92049823]
[1749466195691,0.7421504,107110.0,107100.0,0.92049823]
[1749466195893,0.11056,107110.0,107100.0,1.10714603]
[1749466196081,0.55512,107110.0,107100.0,1.10714603]
[1749466196285,0.5343025,107110.0,107100.0,1.10714603]
[1749466196485,0.7205329,107110.0,107100.0,0.92049823]
[1749466196680,0.7209329,107110.0,107100.0,0.92049823]
[1749466196895,2.2209329,107110.0,107100.0,1.10714603]
[1749466197587,2.0343025,107110.0,107100.0,1.10714603]
[1749466197793,2.01914763,107110.0,107100.0,1.10714603]
[1749466198187,2.20577823,107110.0,107100.0,1.10714603]
[1749466199393,2.01914763,107110.0,107100.0,1.10714603]
[1749466199889,2.20577803,107110.0,107100.0,1.10714603]
[1749466200089,2.16577803,107110.0,107100.0,0.92049823]
[1749466200388,2.6352013,107110.0,107100.0,0.81187496]
[1749466200579,2.6352013,107110.0,107100.0,0.71187496]
[1749466200580,2.52657803,107110.0,107100.0,0.71187496]
[1749466200785,2.16577803,107110.0,107100.0,0.71187496]
[1749466201587,2.52657803,107110.0,107100.0,0.71187496]
[1749466202289,1.1352013,107110.0,107100.0,0.71187496]
[1749466203385,1.1352013,107110.0,107100.0,0.61187496]
[1749466203584,1.1352013,107110.0,107100.0,0.71187496]
[1749466203785,1.1352013,107110.0,107100.0,0.09345889]
[1749466203992,1.40197803,107110.0,107100.0,0.09345889]
[1749466204192,1.5106013,107110.0,107100.0,0.09345889]
[1749466204995,0.1866478,107100.0,107090.0,0.07357564]
[1749466205188,0.1866478,107100.0,107080.0,0.3747]
[1749466205189,0.1866652,107090.0,107080.0,0.4747]
[1749466205383,1.24874986,107090.0,107080.0,0.1]
[1749466205593,1.62414986,107090.0,107080.0,0.23390434]
[1749466205798,1.62414986,107090.0,107080.0,0.09336632]
[1749466205989,1.62414986,107090.0,107080.0,0.16723784]
[1749466206692,1.07110986,107090.0,107080.0,0.16723784]
[1749466206890,1.62418986,107090.0,107080.0,0.54953784]
[1749466207089,1.10016659,107090.0,107080.0,0.84027724]
[1749466207291,1.20878986,107090.0,107080.0,0.84027724]
[1749466207597,1.20918986,107090.0,107080.0,0.84027724]
[1749466207905,1.20918986,107090.0,107080.0,0.98055216]
[1749466207906,1.0850065,107090.0,107080.0,0.98055216]
[1749466208092,1.0850065,107090.0,107080.0,0.97649556]
[1749466208298,1.14052669,107090.0,107080.0,0.97649556]
[1749466208497,1.11890398,107090.0,107080.0,0.97649556]
[1749466208699,1.12190398,107090.0,107080.0,0.97649556]
[1749466209195,1.12734398,107090.0,107080.0,0.97649556]
[1749466209389,0.04802139,107090.0,107080.0,0.97649556]
[1749466209590,0.60110139,107090.0,107080.0,0.97649556]
[1749466209800,0.59910139,107090.0,107080.0,1.63878768]
[1749466210098,0.59870139,107090.0,107080.0,1.74991064]
[1749466210293,0.04562139,107090.0,107080.0,1.74991064]
[1749466210489,0.59910139,107090.0,107080.0,1.74991064]
[1749466210884,0.78236679,107090.0,107080.0,1.74991064]
[1749466211090,0.59610139,107090.0,107080.0,1.63878768]
[1749466211397,0.003,107090.0,107080.0,2.20046506]
[1749466211698,0.44792,107090.0,107080.0,1.99897294]
[1749466212090,0.44752,107090.0,107080.0,1.99897294]
[1749466212291,0.44792,107090.0,107080.0,1.99897294]
[1749466212687,0.44692,107090.0,107080.0,1.99897294]
[1749466212892,0.44692,107090.0,107080.0,1.99997294]
[1749466213897,0.44492,107090.0,107080.0,1.99997294]
[1749466214095,0.40592,107090.0,107080.0,2.00402954]
[1749466214400,0.40592,107090.0,107080.0,2.20552166]
[1749466214794,0.0014,107090.0,107080.0,2.20552166]
[1749466214999,0.44588,107090.0,107080.0,2.20552166]
[1749466215295,0.44588,107090.0,107080.0,1.99997294]
[1749466215891,0.44588,107090.0,107080.0,2.20132023]
[1749466216301,0.44588,107090.0,107080.0,1.99997294]
[1749466216902,0.44588,107090.0,107080.0,2.2866502]
[1749466217299,0.4134707,107090.0,107080.0,2.2866502]
[1749466217799,0.14719262,107110.0,107100.0,0.186648]
[1749466217995,0.14681971,107110.0,107100.0,0.58798463]
[1749466218202,0.59125971,107110.0,107100.0,1.10561036]
[1749466218505,0.59125971,107110.0,107100.0,1.19899412]
[1749466218803,2.09125971,107110.0,107100.0,1.19899412]
[1749466218999,2.27789031,107110.0,107100.0,1.19899412]
[1749466219505,2.27989031,107110.0,107100.0,1.19899412]
[1749466219909,2.27981031,107110.0,107100.0,1.19899412]
[1749466220202,2.28281031,107110.0,107100.0,1.19899412]
[1749466220606,2.64361031,107110.0,107100.0,1.01234612]
[1749466220910,2.64361031,107110.0,107100.0,1.19899412]
[1749466221204,1.1023506,107110.0,107100.0,1.19899412]
[1749466221406,1.1033506,107110.0,107100.0,1.19899412]
[1749466222113,1.1023506,107110.0,107100.0,1.19899412]
[1749466222406,2.6023506,107110.0,107100.0,0.99765749]
[1749466222598,2.7877506,107110.0,107100.0,0.99765749]
[1749466223401,2.7877506,107110.0,107100.0,0.81100949]
[1749466223604,2.7877506,107110.0,107100.0,0.91232143]
[1749466223799,3.1623506,107110.0,107100.0,0.91232143]
[1749466224004,3.1623506,107110.0,107100.0,0.53392143]
[1749466225502,3.20161929,107110.0,107100.0,0.53392143]
[1749466225899,3.20161929,107110.0,107100.0,0.33260949]
[1749466226104,3.31274225,107110.0,107100.0,0.33260949]
[1749466226802,3.31274225,107110.0,107100.0,0.53393977]
[1749466227005,3.20161929,107110.0,107100.0,0.53393977]
[1749466227404,3.31274225,107110.0,107100.0,0.53393977]
[1749466227800,3.2975861,107110.0,107100.0,0.53393977]
[1749466228307,3.2575861,107110.0,107100.0,0.53393977]
[1749466229011,3.14646314,107110.0,107100.0,0.53393977]
[1749466229594,3.14646314,107110.0,107100.0,0.33260949]
[1749466230304,3.14646314,107110.0,107100.0,0.53400164]
[1749466230506,3.1140515,107110.0,107100.0,0.33260949]
[1749466230703,3.22517446,107110.0,107100.0,0.33260949]
[1749466230903,1.72517446,107110.0,107100.0,0.29484709]
[1749466231202,1.96505659,107110.0,107100.0,0.29484709]
[1749466231606,1.96505659,107110.0,107100.0,0.09338376]
[1749466233509,1.96505659,107110.0,107100.0,0.19338376]
[1749466233810,1.96505659,107110.0,107100.0,0.09338376]
[1749466234497,1.96505659,107110.0,107100.0,0.29484709]
[1749466234904,1.96505659,107110.0,107100.0,0.09338376]
[1749466235402,2.05262438,107110.0,107100.0,0.09338376]
[1749466235901,2.05250438,107110.0,107100.0,0.19338376]
[1749466236106,2.05290438,107110.0,107100.0,0.19338376]
[1749466236306,1.50010438,107110.0,107100.0,0.19338376]
[1749466236608,1.87180438,107110.0,107100.0,0.58614709]
[1749466236812,1.87220438,107110.0,107100.0,0.76864709]
[1749466237011,1.87180438,107110.0,107100.0,0.76864709]
[1749466237212,1.87220438,107110.0,107100.0,0.56718376]
[1749466238609,1.85700719,107110.0,107100.0,0.89436892]
[1749466238810,1.84607696,107110.0,107100.0,0.89436892]
[1749466239010,1.84567696,107110.0,107100.0,0.89436892]
[1749466239308,1.84607696,107110.0,107100.0,1.09616385]
[1749466239502,1.51136438,107110.0,107100.0,0.90951585]
[1749466240307,1.87216438,107110.0,107100.0,0.90951585]
[1749466240510,2.05926438,107110.0,107100.0,0.90951585]
[1749466241522,2.05926438,107110.0,107100.0,0.53571585]
[1749466241909,1.50650438,107110.0,107100.0,0.53571585]
[1749466242111,2.05926438,107110.0,107100.0,0.53571585]
[1749466242513,2.01926438,107110.0,107100.0,0.53571585]
[1749466242712,1.77666438,107110.0,107100.0,0.53571585]
[1749466243519,1.22876438,107110.0,107100.0,0.72236385]
[1749466243722,1.58956438,107110.0,107100.0,0.91391585]
[1749466243916,1.48075929,107110.0,107100.0,0.91391585]
[1749466244116,1.58952438,107110.0,107100.0,0.91391585]
[1749466244720,1.58952438,107110.0,107100.0,0.91797245]
[1749466244922,0.78448438,107110.0,107100.0,0.91797245]
[1749466245219,1.22872438,107110.0,107100.0,0.91797245]
[1749466245623,1.12031929,107110.0,107100.0,0.91797245]
[1749466245823,1.03482438,107110.0,107100.0,0.91797245]
[1749466246624,1.03482438,107110.0,107100.0,0.74418752]
[1749466247017,1.03482438,107110.0,107100.0,0.94605872]
[1749466247314,1.03482438,107110.0,107100.0,0.74418752]
[1749466247716,1.03482438,107110.0,107100.0,0.94605931]
[1749466248119,1.03482438,107110.0,107100.0,1.13270741]
[1749466248120,0.88742438,107110.0,107100.0,1.13270741]
[1749466248421,2.38742438,107110.0,107100.0,0.94605931]
[1749466248922,2.38702438,107110.0,107100.0,0.94605931]
[1749466249117,2.38742438,107110.0,107100.0,0.94605931]
[1749466249514,2.34742438,107110.0,107100.0,0.94605931]
[1749466249714,2.27172118,107110.0,107100.0,0.94605931]
[1749466249914,2.38012627,107110.0,107100.0,0.94605931]
[1749466250623,2.74092627,107110.0,107100.0,1.13270741]
[1749466252020,2.74092627,107110.0,107100.0,0.94605931]
[1749466252422,2.72576989,107110.0,107100.0,0.93083562]
[1749466252617,2.36496989,107110.0,107100.0,0.92677902]
[1749466254329,2.2565648,107110.0,107100.0,0.92677902]
[1749466255124,2.2565648,107110.0,107100.0,1.21345628]
[1749466255826,2.2565648,107110.0,107100.0,1.21751288]
[1749466256525,2.2165648,107110.0,107100.0,1.21751288]
[1749466256826,2.2165648,107110.0,107100.0,1.21345618]
[1749466257513,2.32496989,107110.0,107100.0,1.21345618]
[1749466257727,2.2165648,107110.0,107100.0,1.21345618]
[1749466257929,2.32496989,107110.0,107100.0,1.21345618]
[1749466258329,2.2165648,107110.0,107100.0,1.21345618]
[1749466258628,2.32496989,107110.0,107100.0,1.21345618]
[1749466260323,2.2165648,107110.0,107100.0,1.21345618]
[1749466260526,2.32496989,107110.0,107100.0,0.92677892]
[1749466260729,1.64158189,107110.0,107100.0,0.92677892]
[1749466260934,0.77185249,107110.0,107100.0,0.92677892]
[1749466261227,0.77225249,107110.0,107100.0,1.21345618]
[1749466261831,0.77225249,107110.0,107100.0,1.21751278]
[1749466262429,0.75709688,107110.0,107100.0,1.31751278]
[1749466263630,0.71709688,107110.0,107100.0,1.31751278]
[1749466264835,0.71709688,107110.0,107100.0,1.31345618]
[1749466265834,0.71709688,107110.0,107100.0,1.31751278]
[1749466267037,0.82550197,107110.0,107100.0,1.31751278]
[1749466267731,0.82550197,107110.0,107100.0,1.03083552]
[1749466268834,0.82550197,107110.0,107100.0,0.84418752]
[1749466269029,1.01040197,107110.0,107100.0,0.74418752]
[1749466269339,1.01040197,107110.0,107100.0,0.93083552]
[1749466269631,1.01040197,107110.0,107100.0,0.74418752]
[1749466269839,1.01040197,107110.0,107100.0,1.21751278]
[1749466270030,1.01040197,107110.0,107100.0,1.21345618]
[1749466270724,0.97040197,107110.0,107100.0,1.02680818]
[1749466271433,0.97040197,107110.0,107100.0,1.21345618]
[1749466272433,1.06356623,107110.0,107100.0,1.21345618]
[1749466273336,1.06356623,107110.0,107100.0,1.02680818]
[1749466274041,1.06356623,107110.0,107100.0,1.21345618]
[1749466274440,1.06356623,107110.0,107100.0,1.02680818]
[1749466275039,1.06356623,107110.0,107100.0,1.21345618]
[1749466275734,1.42436623,107110.0,107100.0,1.21345618]
[1749466276333,1.42436623,107110.0,107100.0,1.02680818]
[1749466276733,1.61276623,107110.0,107100.0,1.02680818]
[1749466277937,1.57276623,107110.0,107100.0,1.02680818]
[1749466278337,1.60612897,107110.0,107100.0,1.22892546]
[1749466278735,1.60612897,107110.0,107100.0,0.9422482]
[1749466279543,1.60612897,107110.0,107100.0,1.1288962]
[1749466281540,1.60612897,107110.0,107100.0,0.9422482]
[1749466282640,1.48256758,107110.0,107100.0,0.9422482]
[1749466282842,1.59097267,107110.0,107100.0,0.92677892]
[1749466283036,1.59097267,107110.0,107100.0,1.21345618]
[1749466283438,1.59097267,107110.0,107100.0,1.02680818]
[1749466284945,1.55097267,107110.0,107100.0,1.02680818]
[1749466285940,1.55097267,107110.0,107100.0,0.74013092]
[1749466286337,1.55097267,107110.0,107100.0,0.36193092]
[1749466286538,1.74587267,107110.0,107100.0,0.28631834]
[1749466286735,1.83924067,107110.0,107100.0,0.25781809]
[1749466286943,1.83924067,107110.0,107100.0,0.25788159]
[1749466287144,1.83924067,107110.0,107100.0,1e-08]
[1749466287441,1.83924067,107110.0,107100.0,0.09336633]
[1749466287640,1.83868067,107110.0,107100.0,0.09336633]
[1749466291140,2.19948067,107110.0,107100.0,0.09336633]
[1749466291546,1.47788067,107110.0,107100.0,0.09336633]
[1749466291745,2.10611267,107110.0,107100.0,0.09336633]
[1749466292650,2.09095408,107110.0,107100.0,0.09336633]
[1749466293448,2.09095408,107110.0,107100.0,0.09336632]
[1749466294751,2.09095408,107110.0,107080.0,0.07376139]
[1749466294752,0.1866655,107090.0,107080.0,0.07376139]
[1749466294951,1.20763059,107090.0,107080.0,0.1]
[1749466295150,1.20763059,107090.0,107080.0,0.82067774]
[1749466295353,1.56843059,107090.0,107080.0,0.9140615]
[1749466295751,1.56843059,107090.0,107080.0,0.91413557]
[1749466296557,1.56843059,107090.0,107080.0,0.91613557]
[1749466296856,1.56843059,107090.0,107080.0,0.91713557]
[1749466297359,1.56843059,107090.0,107080.0,0.92119217]
[1749466297856,1.12479059,107090.0,107080.0,0.92119217]
[1749466298058,1.0163855,107090.0,107080.0,0.92119217]
[1749466298265,1.4599855,107090.0,107080.0,0.91713557]
[1749466298457,1.4599855,107090.0,107080.0,0.9933601]
[1749466298762,1.4603855,107090.0,107080.0,0.79144702]
[1749466298963,1.4199855,107090.0,107080.0,0.79144702]
[1749466299750,1.4203855,107090.0,107080.0,0.79144702]
[1749466300364,0.6987855,107090.0,107080.0,1.07812428]
[1749466301065,0.80719059,107090.0,107080.0,1.07812428]
[1749466301757,1.16799059,107090.0,107080.0,0.79144702]
[1749466302159,0.6987455,107090.0,107080.0,0.79144702]
[1749466302350,0.6987455,107090.0,107080.0,1.44733501]
[1749466302552,0.68318712,107090.0,107080.0,1.25224702]
[1749466302857,0.68358712,107090.0,107080.0,0.89144702]
[1749466303168,1.15279221,107090.0,107080.0,0.89144702]
[1749466304160,1.15279221,107090.0,107080.0,0.79144702]
[1749466304859,1.04438712,107090.0,107080.0,0.79144702]
[1749466305059,1.15279221,107090.0,107080.0,0.79144702]
[1749466305267,1.15279221,107090.0,107080.0,0.99313064]
[1749466305458,1.04438712,107090.0,107080.0,0.99313064]
[1749466305665,1.15279221,107090.0,107080.0,0.99313064]
[1749466306268,1.11279221,107090.0,107080.0,0.99313064]